fUSD/lending_fUSD_20250617
["ID","MTS","AMOUNT","RATE_DAILY","PERIOD"]
[366317942,1750183870911,-490.0,0.00016602,2]
[366317944,1750183870920,-1152.21,0.00016602,2]
[366317946,1750183870931,-490.0,0.00016602,2]
[366317948,1750183870941,-1050.86,0.00016602,2]
[366317950,1750183870951,-8741.13,0.00016602,2]
[366317952,1750183870961,-490.0,0.00016602,2]
[366317954,1750183870971,-490.0,0.00016602,2]
[366317956,1750183870982,-1725.21,0.00016602,2]
[366317958,1750183870992,-490.0,0.00016602,2]
[366317960,1750183871002,-2107.96,0.00016602,2]
[366317962,1750183871012,-2318.97,0.00016602,2]
[366317964,1750183871022,-550.0,0.00016602,2]
[366317966,1750183871032,-6105.06,0.00016602,2]
[366317968,1750183871047,-490.0,0.00016602,2]
[366317970,1750183871057,-1843.2,0.00016602,2]
[366317972,1750183871066,-490.0,0.00016602,2]
[366317974,1750183871076,-658.85,0.00016602,2]
[366317976,1750183871086,-490.0,0.00016602,2]
[366317978,1750183871096,-490.0,0.00016602,2]
[366317980,1750183871105,-490.0,0.00016602,2]
[366317982,1750183871116,-490.0,0.00016602,2]
[366317984,1750183871127,-1135.97,0.00016602,2]
[366317986,1750183871137,-490.0,0.00016602,2]
[366317988,1750183871147,-490.0,0.00016602,2]
[366317990,1750183871157,-1525.02,0.00016602,2]
[366317992,1750183871167,-552.18,0.00016602,2]
[366317995,1750183871177,-2415.92,0.00016602,2]
[366317997,1750183871187,-490.0,0.00016602,2]
[366317999,1750183871197,-490.0,0.00016602,2]
[366318001,1750183871206,-992.79,0.00016602,2]
[366318003,1750183871216,-690.91,0.00016602,2]
[366318005,1750183871227,-490.0,0.00016602,2]
[366318007,1750183871237,-490.0,0.00016602,2]
[366318009,1750183871247,-501.46,0.00016602,2]
[366318011,1750183871257,-3186.592471,0.00016602,2]
[366318013,1750183871268,-490.0,0.00016602,2]
[366318015,1750183871277,-1315.93,0.00016602,2]
[366318017,1750183871287,-3186.592471,0.00016602,2]
[366318019,1750183871298,-490.0,0.00016602,2]
[366318021,1750183871308,-3186.592471,0.00016602,2]
[366318023,1750183871318,-490.0,0.00016602,2]
[366318025,1750183871328,-23662.94,0.00016602,2]
[366318027,1750183871339,-1722.06,0.00016602,2]
[366318029,1750183871349,-3186.592471,0.00016602,2]
[366318031,1750183871359,-619.97,0.00016602,2]
[366318033,1750183871368,-3186.592471,0.00016602,2]
[366318035,1750183871379,-3186.592479,0.00016602,2]
[366318037,1750183871389,-635.45,0.00016602,2]
[366318039,1750183871399,-490.0,0.00016602,2]
[366318041,1750183871409,-490.0,0.00016602,2]
[366318043,1750183871419,-1415.14,0.00016602,2]
[366318045,1750183871431,-490.0,0.00016602,2]
[366318047,1750183871441,-415.85118261,0.00016602,2]
[366318049,1750183871451,-3443.01,0.00016602,2]
[366318051,1750183871461,-490.0,0.00016602,2]
[366318053,1750183871471,-1466.06,0.00016602,2]
[366318055,1750183871482,-780.96,0.00016602,2]
[366318057,1750183871493,-3599.9,0.00016602,2]
[366318059,1750183871503,-581.5,0.00016602,2]
[366318061,1750183871513,-1867.84,0.00016602,2]
[366318063,1750183871522,-280.628356,0.00016602,2]
[366318065,1750183871534,-280.628356,0.00016602,2]
[366318067,1750183871544,-490.0,0.00016602,2]
[366318069,1750183871554,-490.0,0.00016602,2]
[366318072,1750183871564,-280.628356,0.00016602,2]
[366318074,1750183871574,-490.0,0.00016602,2]
[366318076,1750183871584,-490.0,0.00016602,2]
[366318077,1750183871594,-639.46,0.00016602,2]
[366318079,1750183871604,-490.0,0.00016602,2]
[366318081,1750183871615,-729.0,0.00016602,2]
[366318083,1750183871625,-490.0,0.00016602,2]
[366318085,1750183871635,-280.628356,0.00016602,2]
[366318087,1750183871646,-490.0,0.00016602,2]
[366318089,1750183871657,-490.0,0.00016602,2]
[366318091,1750183871667,-280.628356,0.00016602,2]
[366318093,1750183871681,-280.62836,0.00016602,2]
[366318096,1750183871693,-2551.92,0.00016602,2]
[366318098,1750183871703,-3618.59802833,0.00016602,2]
[366318211,1750183873004,-490.0,0.00016438,2]
[366318212,1750183873013,-118.07006925,0.00016602,2]
[366318214,1750183873025,-849.11190242,0.00016602,2]
[366318215,1750183873035,-465.76831828,0.00016602,2]
[366318217,1750183873049,-34.23168172,0.00016602,2]
[366318219,1750183873059,-490.0,0.00016602,2]
[366318220,1750183873070,-640.66,0.00016602,2]
[366318222,1750183873080,-490.0,0.00016602,2]
[366318223,1750183873091,-186.724308,0.00016602,2]
[366318225,1750183873100,-186.724308,0.00016602,2]
[366318226,1750183873110,-507.92470228,0.00016602,2]
[366318229,1750183873136,-2060.00529772,0.00016602,2]
[366318231,1750183873145,-522.16,0.00016602,2]
[366318232,1750183873155,-186.724308,0.00016602,2]
[366318234,1750183873164,-490.0,0.00016602,2]
[366318235,1750183873174,-590.01916126,0.00016602,2]
[366318237,1750183873184,-2642.67,0.00016602,2]
[366318239,1750183873194,-490.0,0.00016602,2]
[366318240,1750183873204,-1445.03,0.00016602,2]
[366318242,1750183873214,-833.56,0.00016602,2]
[366318244,1750183873223,-490.0,0.00016602,2]
[366318245,1750183873233,-490.0,0.00016602,2]
[366318247,1750183873243,-186.724308,0.00016602,2]
[366318248,1750183873252,-186.724308,0.00016602,2]
[366318250,1750183873262,-186.724299,0.00016602,2]
[366318252,1750183873271,-27.91325554,0.00016602,2]
[366318254,1750183873290,-1992.16587549,0.00016602,2]
[366318256,1750183873302,-474.78086897,0.00016602,2]
[366318258,1750183873312,-490.0,0.00016602,2]
[366318259,1750183873323,-23.19562694,0.00016602,2]
[366318261,1750183873334,-655.83437306,0.00016602,2]
[366318263,1750183873344,-106.8361354,0.00016602,2]
[366318265,1750183873360,-282.67429781,0.00016602,2]
[366318267,1750183873370,-490.0,0.00016602,2]
[366318268,1750183873379,-383.27570219,0.00016602,2]
[366318270,1750183873391,-80.33230621,0.00016602,2]
[366318272,1750183873401,-577.51158379,0.00016602,2]
[366318274,1750183873413,-931.58841621,0.00016602,2]
[366318275,1750183873423,-672.56,0.00016602,2]
[366318277,1750183873435,-852.558045,0.00016602,2]
[366318279,1750183873447,-96.151955,0.00016602,2]
[366318280,1750183873456,-1968.76,0.00016602,2]
[366318282,1750183873466,-765.278245,0.00016602,2]
[366318284,1750183873478,-901.521755,0.00016602,2]
[366318286,1750183873488,-500.0,0.00016602,2]
[366318287,1750183873497,-197.88138231,0.00016602,2]
[366318289,1750183873509,-292.11861769,0.00016602,2]
[366318291,1750183873519,-1401.62,0.00016602,2]
[366318292,1750183873529,-164.39138231,0.00016602,2]
[366318295,1750183873552,-335.60861769,0.00016602,2]
[366318297,1750183873562,-1244.63,0.00016602,2]
[366318298,1750183873571,-490.0,0.00016602,2]
[366318300,1750183873580,-490.0,0.00016602,2]
[366318302,1750183873591,-150.0,0.00016602,2]
[366318303,1750183873600,-7585.73,0.00016602,2]
[366318305,1750183873610,-228.61,0.00016602,2]
[366318307,1750183873619,-490.0,0.00016602,2]
[366318308,1750183873628,-490.0,0.00016602,2]
[366318310,1750183873638,-1128.93,0.00016602,2]
[366318312,1750183873648,-778.28,0.00016602,2]
[366318313,1750183873657,-490.0,0.00016602,2]
[366318315,1750183873667,-490.0,0.00016602,2]
[366318316,1750183873677,-490.0,0.00016602,2]
[366318318,1750183873687,-490.0,0.00016602,2]
[366318320,1750183873696,-9087.51,0.00016602,2]
[366318321,1750183873706,-3274.38,0.00016602,2]
[366318323,1750183873716,-777.8,0.00016602,2]
[366318325,1750183873728,-1292.69,0.00016602,2]
[366318326,1750183873738,-583.14,0.00016602,2]
[366318328,1750183873747,-1313.67,0.00016602,2]
[366318330,1750183873758,-1517.39,0.00016602,2]
[366318331,1750183873767,-702.57,0.00016602,2]
[366318333,1750183873776,-490.0,0.00016602,2]
[366318335,1750183873786,-490.0,0.00016602,2]
[366318336,1750183873795,-490.0,0.00016602,2]
[366318338,1750183873804,-1261.93,0.00016602,2]
[366318340,1750183873814,-1277.12,0.00016602,2]
[366318341,1750183873824,-1005.78,0.00016602,2]
[366318343,1750183873834,-733.05,0.00016602,2]
[366318345,1750183873843,-12917.78752152,0.00016602,2]
[366318377,1750183874278,-2127.5000002,0.00016389,2]
[366318379,1750183874290,-1169.19352673,0.00016389,2]
[366318396,1750183874444,-669.90824524,0.00016389,2]
[366318398,1750183874455,-2587.83,0.00016389,2]
[366318400,1750183874467,-412.63074897,0.00016389,2]
[366318402,1750183874476,-924.00995385,0.00016602,2]
[366318465,1750183875081,-490.0,0.00016438,2]
[366318467,1750183875091,-446.9053776,0.00016438,2]
[366318469,1750183875101,-490.0,0.00016438,2]
[366318471,1750183875111,-1684.01490655,0.00016602,2]
[366318473,1750183875123,-705.52841105,0.00016602,2]
[366318476,1750183875140,-1664.59,0.00016438,2]
[366318477,1750183875150,-6625.94920703,0.00016602,2]
[366318479,1750183875159,-1853.39,0.00016602,2]
[366318482,1750183875168,-490.0,0.00016602,2]
[366318484,1750183875180,-1131.47,0.00016602,2]
[366318486,1750183875189,-151.0,0.00016602,2]
[366318488,1750183875199,-490.0,0.00016602,2]
[366318490,1750183875208,-490.0,0.00016602,2]
[366318492,1750183875217,-151.0,0.00016602,2]
[366318493,1750183875227,-151.0,0.00016602,2]
[366318496,1750183875236,-1188.36,0.00016602,2]
[366318498,1750183875245,-490.0,0.00016602,2]
[366318500,1750183875255,-1132.66,0.00016602,2]
[366318501,1750183875264,-490.0,0.00016602,2]
[366318504,1750183875274,-750.55,0.00016602,2]
[366318506,1750183875283,-490.0,0.00016602,2]
[366318508,1750183875292,-1334.93760008,0.00016602,2]
[366318510,1750183875304,-264.4168396,0.00016602,2]
[366318512,1750183875315,-1039.50556032,0.00016602,2]
[366318514,1750183875324,-1435.99443968,0.00016602,2]
[366318516,1750183875336,-606.7,0.00016602,2]
[366318518,1750183875346,-2158.6,0.00016602,2]
[366318521,1750183875364,-688.14556032,0.00016602,2]
[366318524,1750183875376,-769.55,0.00016602,2]
[366318526,1750183875386,-932.65,0.00016602,2]
[366318528,1750183875396,-4717.64,0.00016602,2]
[366318530,1750183875405,-490.0,0.00016602,2]
[366318532,1750183875415,-490.0,0.00016602,2]
[366318534,1750183875424,-1184.42,0.00016602,2]
[366318536,1750183875436,-490.0,0.00016602,2]
[366318538,1750183875446,-492.1011641,0.00016602,2]
[366318540,1750183875455,-1144.91,0.00016602,2]
[366318542,1750183875465,-2687.54,0.00016602,2]
[366318544,1750183875474,-490.0,0.00016602,2]
[366318546,1750183875484,-490.0,0.00016602,2]
[366318548,1750183875493,-1102.431131,0.00016602,2]
[366318550,1750183875503,-1102.431131,0.00016602,2]
[366318552,1750183875513,-1289.13,0.00016602,2]
[366318554,1750183875523,-1102.431131,0.00016602,2]
[366318556,1750183875534,-666.08,0.00016602,2]
[366318558,1750183875545,-1089.84,0.00016602,2]
[366318560,1750183875555,-1511.92,0.00016602,2]
[366318562,1750183875565,-490.0,0.00016602,2]
[366318564,1750183875576,-5637.55,0.00016602,2]
[366318567,1750183875586,-3408.95,0.00016602,2]
[366318569,1750183875596,-4070.1,0.00016602,2]
[366318571,1750183875605,-1679.75,0.00016602,2]
[366318573,1750183875615,-3932.74,0.00016602,2]
[366318575,1750183875625,-1102.431131,0.00016602,2]
[366318577,1750183875634,-1102.431131,0.00016602,2]
[366318579,1750183875645,-490.0,0.00016602,2]
[366318581,1750183875656,-1102.431128,0.00016602,2]
[366318583,1750183875666,-490.0,0.00016602,2]
[366318585,1750183875676,-768.82,0.00016602,2]
[366318587,1750183875687,-490.0,0.00016602,2]
[366318589,1750183875697,-490.0,0.00016602,2]
[366318591,1750183875707,-490.0,0.00016602,2]
[366318593,1750183875717,-2508.35,0.00016602,2]
[366318595,1750183875726,-490.0,0.00016602,2]
[366318597,1750183875736,-1117.54,0.00016602,2]
[366318599,1750183875746,-490.0,0.00016602,2]
[366318601,1750183875757,-490.0,0.00016602,2]
[366318603,1750183875767,-785.37,0.00016602,2]
[366318605,1750183875777,-466.06326193,0.00016602,2]
[366318607,1750183875790,-79.32673807,0.00016602,2]
[366318610,1750183875801,-343.67326193,0.00016602,2]
[366319667,1750184892975,1019.54891989,0.000211,90]
[366319669,1750184956435,3000.0,0.00024657,120]
[366319679,1750185031924,-218.85,0.00013699,2]
[366319680,1750185031933,-89.99060142,0.00014625,4]
[366319681,1750185031946,-510.00939858,0.00014625,4]
[366319682,1750185031956,-250.0,0.00015,2]
[366319683,1750185031966,-600.0,0.00015068,4]
[366319684,1750185031977,-500.0,0.00015236,3]
[366319685,1750185031986,-200.0,0.00015433,7]
[366319686,1750185031995,-163.89,0.00015476,2]
[366319687,1750185032006,-1000.0,0.00015551,2]
[366319688,1750185032016,-168.0,0.00015893,2]
[366319689,1750185032025,-450.3846977,0.00016,2]
[366319690,1750185032035,-1200.0,0.0001603,2]
[366319691,1750185032045,-1957.856,0.00016031,2]
[366319692,1750185032054,-207.4,0.00016031,2]
[366319693,1750185032064,-300.0,0.0001604,2]
[366319694,1750185032074,-923.36,0.00016041,2]
[366319695,1750185032084,-797.62,0.00016041,2]
[366319696,1750185032093,-150.0,0.00016078,2]
[366319697,1750185032103,-300.0,0.00016078,2]
[366319698,1750185032113,-2030.296672,0.00016086,2]
[366319699,1750185032123,-168.0,0.00016104,2]
[366319700,1750185032133,-168.0,0.0001611,2]
[366319701,1750185032142,-2105.41764886,0.00016141,2]
[366319702,1750185032154,-500.0,0.00016164,2]
[366319703,1750185032164,-455.27,0.00016178,2]
[366319704,1750185032174,-341.65,0.00016178,2]
[366319705,1750185032184,-455.27,0.00016178,2]
[366319706,1750185032194,-455.27,0.00016178,2]
[366319707,1750185032204,-455.27,0.00016178,2]
[366319708,1750185032214,-455.27,0.00016178,2]
[366319709,1750185032225,-455.27,0.00016178,2]
[366319710,1750185032235,-455.27,0.00016178,2]
[366319711,1750185032245,-455.27,0.00016178,2]
[366319712,1750185032255,-2183.31810187,0.00016196,2]
[366319713,1750185032265,-600.0,0.00016225,4]
[366319714,1750185032276,-2264.10087164,0.00016251,2]
[366319715,1750185032290,-168.0,0.0001627,2]
[366319717,1750185032301,-300.0,0.00016285,2]
[366319719,1750185032311,-774.84,0.00016302,2]
[366319721,1750185032322,-2347.87260389,0.00016306,2]
[366319724,1750185032332,-300.0,0.00016327,2]
[366319727,1750185032342,-600.0,0.00016338,4]
[366319729,1750185032352,-184.55386863,0.00016338,2]
[366319730,1750185032362,-6509.0190658,0.00016338,2]
[366319731,1750185032372,-2492.7356,0.00016338,2]
[366319732,1750185032382,-6509.01906577,0.00016356,2]
[366319733,1750185032393,-2434.74389023,0.00016361,2]
[366319734,1750185032405,-168.0,0.00016362,2]
[366319735,1750185032416,-1000.0,0.00016373,2]
[366319736,1750185032427,-6509.01906577,0.00016374,2]
[366319737,1750185032437,-483.30641053,0.00016392,2]
[366319738,1750185032447,-6509.01906577,0.00016392,2]
[366319739,1750185032459,-151.0,0.00016393,2]
[366319740,1750185032469,-151.0,0.00016393,2]
[366319741,1750185032480,-151.0,0.00016393,2]
[366319742,1750185032494,-1000.0,0.00016393,2]
[366319743,1750185032504,-151.0,0.00016393,2]
[366319744,1750185032513,-387.7503547,0.00016393,2]
[366319745,1750185032523,-668.65185757,0.00016393,2]
[366319746,1750185032532,-602.15084188,0.00016393,2]
[366319747,1750185032542,-448.84774452,0.00016393,2]
[366319748,1750185032552,-700.0,0.00016393,2]
[366319749,1750185032562,-700.0,0.00016393,2]
[366319750,1750185032571,-700.0,0.00016393,2]
[366319751,1750185032581,-794.15274522,0.00016393,2]
[366319752,1750185032591,-151.0,0.00016393,2]
[366319753,1750185032602,-168.0,0.00016398,2]
[366319754,1750185032611,-20300.0,0.000164,2]
[366319755,1750185032622,-22947.94547071,0.00016403,2]
[366319756,1750185032631,-882.265909,0.00016406,2]
[366319757,1750185032641,-6509.01906577,0.0001641,2]
[366319758,1750185032650,-1935.041,0.00016424,2]
[366319759,1750185032660,-6509.01906577,0.00016428,2]
[366319760,1750185032669,-546.43710935,0.00016437,2]
[366319761,1750185032679,-500.0,0.00016437,2]
[366319762,1750185032690,-208.14830793,0.00016437,2]
[366319763,1750185032699,-226.4065412,0.00016437,2]
[366319764,1750185032709,-500.0,0.00016437,2]
[366319765,1750185032719,-500.0,0.00016437,2]
[366319766,1750185032729,-160.77273233,0.00016437,2]
[366319767,1750185032738,-432.90321282,0.00016437,2]
[366319768,1750185032747,-500.0,0.00016437,2]
[366319769,1750185032757,-500.0,0.00016437,2]
[366319770,1750185032767,-500.0,0.00016437,2]
[366319771,1750185032779,-409.90621804,0.00016437,2]
[366319772,1750185032789,-160.493463,0.00016438,2]
[366319773,1750185032799,-160.493463,0.00016438,2]
[366319774,1750185032809,-160.493463,0.00016438,2]
[366319775,1750185032819,-160.493463,0.00016438,2]
[366319776,1750185032829,-160.493463,0.00016438,2]
[366319777,1750185032838,-160.493463,0.00016438,2]
[366319778,1750185032847,-160.493463,0.00016438,2]
[366319779,1750185032857,-160.493463,0.00016438,2]
[366319780,1750185032867,-160.493463,0.00016438,2]
[366319781,1750185032876,-160.493463,0.00016438,2]
[366319782,1750185032886,-160.493463,0.00016438,2]
[366319783,1750185032896,-160.493463,0.00016438,2]
[366319784,1750185032906,-205.142637,0.00016438,2]
[366319785,1750185032916,-205.142637,0.00016438,2]
[366319786,1750185032925,-205.142637,0.00016438,2]
[366319787,1750185032936,-471.130052,0.00016438,2]
[366319788,1750185032945,-205.142637,0.00016438,2]
[366319789,1750185032955,-471.130052,0.00016438,2]
[366319790,1750185032965,-205.142637,0.00016438,2]
[366319791,1750185032975,-471.130052,0.00016438,2]
[366319792,1750185032985,-205.142637,0.00016438,2]
[366319793,1750185032994,-471.130052,0.00016438,2]
[366319794,1750185033004,-471.130052,0.00016438,2]
[366319795,1750185033014,-205.142637,0.00016438,2]
[366319796,1750185033024,-205.142637,0.00016438,2]
[366319797,1750185033034,-205.142637,0.00016438,2]
[366319798,1750185033044,-471.130052,0.00016438,2]
[366319799,1750185033054,-205.142637,0.00016438,2]
[366319800,1750185033064,-471.130052,0.00016438,2]
[366319801,1750185033073,-205.142637,0.00016438,2]
[366319802,1750185033083,-471.130052,0.00016438,2]
[366319803,1750185033092,-205.142637,0.00016438,2]
[366319804,1750185033102,-471.130052,0.00016438,2]
[366319805,1750185033112,-471.130052,0.00016438,2]
[366319806,1750185033123,-471.130052,0.00016438,2]
[366319807,1750185033132,-151.0,0.00016438,2]
[366319808,1750185033143,-151.0,0.00016438,2]
[366319809,1750185033153,-151.0,0.00016438,2]
[366319810,1750185033163,-152.930908,0.00016438,2]
[366319811,1750185033173,-290.26279595,0.00016438,2]
[366319812,1750185033183,-490.0,0.00016438,2]
[366319813,1750185033193,-151.0,0.00016438,2]
[366319814,1750185033203,-151.0,0.00016438,2]
[366319815,1750185033213,-151.0,0.00016438,2]
[366319816,1750185033223,-151.0,0.00016438,2]
[366319817,1750185033232,-369.22795996,0.00016438,2]
[366319818,1750185033242,-514.674773,0.00016438,2]
[366319819,1750185033252,-514.674773,0.00016438,2]
[366319820,1750185033262,-514.674773,0.00016438,2]
[366319821,1750185033272,-514.674773,0.00016438,2]
[366319822,1750185033282,-514.674773,0.00016438,2]
[366319823,1750185033293,-514.674773,0.00016438,2]
[366319824,1750185033302,-514.674773,0.00016438,2]
[366319825,1750185033313,-514.674773,0.00016438,2]
[366319826,1750185033323,-514.674773,0.00016438,2]
[366319827,1750185033334,-514.674773,0.00016438,2]
[366319828,1750185033344,-514.674773,0.00016438,2]
[366319829,1750185033353,-514.674773,0.00016438,2]
[366319830,1750185033364,-490.0,0.00016438,2]
[366319831,1750185033374,-490.0,0.00016438,2]
[366319832,1750185033384,-490.0,0.00016438,2]
[366319833,1750185033394,-490.0,0.00016438,2]
[366319834,1750185033405,-490.0,0.00016438,2]
[366319835,1750185033416,-490.0,0.00016438,2]
[366319836,1750185033426,-490.0,0.00016438,2]
[366319837,1750185033436,-490.0,0.00016438,2]
[366319838,1750185033447,-490.0,0.00016438,2]
[366319839,1750185033457,-490.0,0.00016438,2]
[366319840,1750185033468,-490.0,0.00016438,2]
[366319841,1750185033478,-490.0,0.00016438,2]
[366319842,1750185033489,-2419.642838,0.00016438,2]
[366319843,1750185033500,-490.0,0.00016438,2]
[366319844,1750185033511,-490.0,0.00016438,2]
[366319845,1750185033521,-295.467413,0.00016438,2]
[366319846,1750185033531,-490.0,0.00016438,2]
[366319847,1750185033542,-490.0,0.00016438,2]
[366319848,1750185033553,-490.0,0.00016438,2]
[366319849,1750185033564,-490.0,0.00016438,2]
[366319850,1750185033574,-471.16595779,0.00016438,2]
[366319851,1750185033584,-490.0,0.00016438,2]
[366319852,1750185033594,-2212.610301,0.00016438,2]
[366319853,1750185033604,-158.765337,0.00016438,2]
[366319854,1750185033613,-162.788307,0.00016438,2]
[366319855,1750185033623,-490.0,0.00016438,2]
[366319856,1750185033634,-490.0,0.00016438,2]
[366319857,1750185033644,-490.0,0.00016438,2]
[366319858,1750185033654,-490.0,0.00016438,2]
[366319859,1750185033664,-745.94,0.00016438,2]
[366319860,1750185033674,-575.32,0.00016438,2]
[366319861,1750185033685,-763.47,0.00016438,2]
[366319862,1750185033694,-490.0,0.00016438,2]
[366319863,1750185033704,-813.16,0.00016438,2]
[366319864,1750185033714,-151.0,0.00016438,2]
[366319865,1750185033723,-151.0,0.00016438,2]
[366319866,1750185033734,-151.0,0.00016438,2]
[366319867,1750185033745,-151.0,0.00016438,2]
[366319868,1750185033755,-490.0,0.00016438,2]
[366319869,1750185033766,-151.0,0.00016438,2]
[366319870,1750185033776,-490.0,0.00016438,2]
[366319871,1750185033786,-151.0,0.00016438,2]
[366319872,1750185033797,-151.0,0.00016438,2]
[366319873,1750185033808,-490.0,0.00016438,2]
[366319874,1750185033818,-568.9,0.00016438,2]
[366319875,1750185033828,-151.0,0.00016438,2]
[366319876,1750185033839,-151.0,0.00016438,2]
[366319877,1750185033849,-490.0,0.00016438,2]
[366319878,1750185033859,-151.0,0.00016438,2]
[366319879,1750185033869,-151.0,0.00016438,2]
[366319880,1750185033879,-223.817473,0.00016438,2]
[366319881,1750185033888,-1020.628665,0.00016438,2]
[366319882,1750185033898,-458.80105212,0.00016438,2]
[366319883,1750185033907,-1020.628665,0.00016438,2]
[366319884,1750185033916,-600.63258685,0.00016438,2]
[366319885,1750185033926,-1020.628665,0.00016438,2]
[366319886,1750185033935,-1020.628665,0.00016438,2]
[366319887,1750185033944,-1020.628665,0.00016438,2]
[366319888,1750185033954,-682.94,0.00016438,2]
[366319889,1750185033964,-490.0,0.00016438,2]
[366319890,1750185033974,-1020.628665,0.00016438,2]
[366319891,1750185033984,-490.0,0.00016438,2]
[366319892,1750185033993,-1020.628665,0.00016438,2]
[366319893,1750185034003,-1020.628665,0.00016438,2]
[366319894,1750185034013,-879.12,0.00016438,2]
[366319895,1750185034023,-1020.628665,0.00016438,2]
[366319896,1750185034032,-1020.628665,0.00016438,2]
[366319897,1750185034043,-1020.628665,0.00016438,2]
[366319898,1750185034054,-490.0,0.00016438,2]
[366319899,1750185034064,-1020.628665,0.00016438,2]
[366319900,1750185034074,-500.0,0.00016438,2]
[366319901,1750185034085,-500.0,0.00016438,2]
[366319902,1750185034095,-333.74472146,0.00016438,2]
[366319903,1750185034106,-490.0,0.00016438,2]
[366319904,1750185034116,-490.0,0.00016438,2]
[366319905,1750185034127,-490.0,0.00016438,2]
[366319906,1750185034136,-844.23,0.00016438,2]
[366319907,1750185034147,-490.0,0.00016438,2]
[366319908,1750185034159,-490.0,0.00016438,2]
[366319909,1750185034169,-490.0,0.00016438,2]
[366319910,1750185034180,-523.31,0.00016438,2]
[366319911,1750185034190,-490.0,0.00016438,2]
[366319912,1750185034201,-490.0,0.00016438,2]
[366319913,1750185034212,-490.0,0.00016438,2]
[366319914,1750185034223,-557.12,0.00016438,2]
[366319915,1750185034235,-490.0,0.00016438,2]
[366319916,1750185034246,-490.0,0.00016438,2]
[366319917,1750185034257,-490.0,0.00016438,2]
[366319918,1750185034267,-490.0,0.00016438,2]
[366319919,1750185034278,-151.0,0.00016438,2]
[366319920,1750185034289,-151.0,0.00016438,2]
[366319921,1750185034299,-151.0,0.00016438,2]
[366319922,1750185034311,-606.27160501,0.00016438,2]
[366319923,1750185034322,-151.0,0.00016438,2]
[366319924,1750185034333,-151.0,0.00016438,2]
[366319925,1750185034343,-151.0,0.00016438,2]
[366319926,1750185034353,-490.0,0.00016438,2]
[366319927,1750185034364,-490.0,0.00016438,2]
[366319928,1750185034375,-505.07,0.00016438,2]
[366319929,1750185034386,-490.0,0.00016438,2]
[366319930,1750185034399,-490.0,0.00016438,2]
[366319931,1750185034412,-151.0,0.00016438,2]
[366319932,1750185034423,-151.0,0.00016438,2]
[366319933,1750185034434,-151.0,0.00016438,2]
[366319934,1750185034446,-151.0,0.00016438,2]
[366319935,1750185034456,-490.0,0.00016438,2]
[366319936,1750185034466,-490.0,0.00016438,2]
[366319937,1750185034476,-151.0,0.00016438,2]
[366319938,1750185034487,-401.24,0.00016438,2]
[366319939,1750185034496,-640.11,0.00016438,2]
[366319940,1750185034506,-490.0,0.00016438,2]
[366319941,1750185034515,-907.24,0.00016438,2]
[366319942,1750185034524,-490.0,0.00016438,2]
[366319943,1750185034534,-490.0,0.00016438,2]
[366319944,1750185034544,-151.0,0.00016438,2]
[366319945,1750185034554,-490.0,0.00016438,2]
[366319946,1750185034563,-490.0,0.00016438,2]
[366319947,1750185034573,-490.0,0.00016438,2]
[366319948,1750185034583,-490.0,0.00016438,2]
[366319949,1750185034592,-490.0,0.00016438,2]